bitfinex-derivatives/quotes_BTCF0:USTF0_20250626
["timestamp","ask_amount","ask_price","bid_price","bid_amount"]
[1750921579086,0.53334425,107840.0,107830.0,0.66932653]
[1750921579280,0.20334425,107840.0,107830.0,0.66932653]
[1750921581590,0.01796805,107840.0,107830.0,0.66932653]
[1750921581782,0.20334425,107840.0,107830.0,0.66932653]
[1750921582188,0.01796805,107840.0,107830.0,0.66932653]
[1750921582384,0.01796805,107840.0,107830.0,0.94782448]
[1750921582590,0.01796805,107840.0,107830.0,1.13329648]
[1750921583088,0.37796805,107840.0,107830.0,1.13329648]
[1750921583388,0.01796805,107840.0,107830.0,1.13329648]
[1750921583588,0.01796805,107840.0,107830.0,0.85479853]
[1750921583891,0.01796805,107840.0,107830.0,1.13329648]
[1750921584389,0.20334425,107840.0,107830.0,1.13329648]
[1750921584586,0.20334425,107840.0,107830.0,0.85479853]
[1750921584786,0.01796805,107840.0,107830.0,0.85479853]
[1750921585280,0.001,107840.0,107830.0,1.13329648]
[1750921585486,0.34133741,107860.0,107850.0,0.185359]
[1750921585684,0.53230681,107860.0,107850.0,1.250239]
[1750921585884,0.53230681,107860.0,107850.0,1.347139]
[1750921587089,0.53230681,107860.0,107850.0,1.350139]
[1750921587891,0.34696501,107860.0,107850.0,1.350139]
[1750921588190,0.01696501,107860.0,107850.0,1.62863695]
[1750921588895,0.20230681,107860.0,107850.0,1.62863695]
[1750921589089,0.01696501,107860.0,107850.0,1.62863695]
[1750921589992,0.01696501,107860.0,107850.0,1.350139]
[1750921590490,0.01696501,107860.0,107850.0,1.352139]
[1750921591795,0.01696501,107860.0,107850.0,0.991339]
[1750921592094,0.01696501,107860.0,107850.0,1.352139]
[1750921599698,0.01696501,107860.0,107850.0,1.63063695]
[1750921599899,0.5122674,107880.0,107870.0,0.1853247]
[1750921600097,0.8722674,107880.0,107870.0,1.2503647]
[1750921600299,0.8722674,107880.0,107870.0,1.3459647]
[1750921601200,0.8732674,107880.0,107870.0,1.3459647]
[1750921601402,0.8732674,107880.0,107870.0,0.5461247]
[1750921601609,0.9053674,107880.0,107870.0,1.2505647]
[1750921601810,0.9053674,107880.0,107870.0,0.5461247]
[1750921602202,0.9043674,107880.0,107870.0,1.2504847]
[1750921602403,0.9043674,107880.0,107870.0,1.2524847]
[1750921603004,0.9043674,107880.0,107870.0,0.5481247]
[1750921603209,0.62586945,107880.0,107870.0,1.2524847]
[1750921603510,0.62586945,107880.0,107870.0,0.5481247]
[1750921603511,0.9043674,107880.0,107870.0,0.5481247]
[1750921603712,0.9043674,107880.0,107870.0,1.2523647]
[1750921604115,0.9043674,107880.0,107870.0,0.5481247]
[1750921604313,0.9043674,107880.0,107870.0,1.2523247]
[1750921615422,0.9043674,107880.0,107870.0,1.2842247]
[1750921615626,0.8722537,107880.0,107870.0,1.2842247]
[1750921615819,0.8722537,107880.0,107870.0,1.3153247]
[1750921617322,0.8722537,107880.0,107870.0,0.9545247]
[1750921617524,0.8722537,107880.0,107870.0,1.3153247]
[1750921619626,0.37674825,107880.0,107870.0,1.3153247]
[1750921620521,0.37674825,107880.0,107870.0,1.59382265]
[1750921620725,0.56205575,107880.0,107870.0,1.3153247]
[1750921626229,0.5453075,107880.0,107870.0,1.3477247]
[1750921629832,0.82380545,107880.0,107870.0,1.3477247]
[1750921631638,0.5453075,107880.0,107870.0,1.3477247]
[1750921634241,0.75413483,107880.0,107870.0,1.55655203]
[1750921636443,0.5453075,107880.0,107870.0,1.3477247]
[1750921636641,0.75413483,107880.0,107870.0,1.55655203]
[1750921640446,0.5453075,107880.0,107870.0,1.55655203]
[1750921640747,0.56882733,107880.0,107870.0,1.55655203]
[1750921641637,0.75413493,107880.0,107870.0,1.55655203]
[1750921641837,0.56882733,107880.0,107870.0,1.55655203]
[1750921642140,0.75413483,107880.0,107870.0,1.55655203]
[1750921643337,0.56882733,107880.0,107870.0,1.55655203]
[1750921643538,0.75413483,107880.0,107870.0,1.55655203]
[1750921644246,0.56882733,107880.0,107870.0,1.55655203]
[1750921644448,0.75413493,107880.0,107870.0,1.55655203]
[1750921646850,0.75413493,107880.0,107870.0,1.19575203]
[1750921647046,0.75413493,107880.0,107870.0,1.55655203]
[1750921651147,0.56882733,107880.0,107870.0,1.55655203]
[1750921652356,0.38882733,107880.0,107870.0,1.3477247]
[1750921652543,0.38882733,107880.0,107870.0,1.55655203]
[1750921652750,0.57413483,107880.0,107870.0,1.55655203]
[1750921652953,0.38882733,107880.0,107870.0,1.55655203]
[1750921654456,0.18,107880.0,107870.0,1.55655203]
[1750921654857,0.38882733,107880.0,107870.0,1.55655203]
[1750921657557,0.18,107880.0,107870.0,1.55655203]
[1750921657759,0.38882733,107880.0,107870.0,1.55655203]
[1750921660464,0.38882733,107880.0,107870.0,1.3477247]
[1750921660656,0.38882733,107880.0,107870.0,1.55655203]
[1750921661465,0.57413483,107880.0,107870.0,1.3477247]
[1750921661660,0.57413483,107880.0,107870.0,1.55655203]
[1750921662963,0.38882733,107880.0,107870.0,1.55655203]
[1750921663666,0.38882733,107880.0,107870.0,1.93655203]
[1750921664068,0.30282733,107890.0,107880.0,0.1853075]
[1750921664261,0.33,107890.0,107880.0,1.07008466]
[1750921664463,0.33,107890.0,107880.0,1.13088466]
[1750921665863,0.33,107890.0,107880.0,1.17149458]
[1750921666060,0.331,107890.0,107880.0,1.17149458]
[1750921666265,0.091,107890.0,107880.0,1.17149458]
[1750921666658,0.091,107890.0,107880.0,1.17249458]
[1750921666858,0.091,107890.0,107880.0,1.52249458]
[1750921667268,0.091,107890.0,107880.0,1.17249458]
[1750921667459,0.09,107890.0,107880.0,1.17349458]
[1750921667769,0.09,107890.0,107880.0,1.53429458]
[1750921668461,0.09,107890.0,107880.0,1.91429458]
[1750921669066,0.09,107890.0,107880.0,1.53429458]
[1750921669568,0.09,107890.0,107880.0,1.87429458]
[1750921669766,0.09,107890.0,107880.0,1.53429458]
[1750921670563,0.09,107890.0,107880.0,0.81269458]
[1750921670769,0.09,107890.0,107880.0,1.53429458]
[1750921673671,0.09,107890.0,107880.0,0.81269458]
[1750921673872,0.09,107890.0,107880.0,1.88429458]
[1750921674665,0.09,107890.0,107880.0,1.53429458]
[1750921675073,0.09,107890.0,107880.0,1.86429458]
[1750921675473,0.09,107890.0,107880.0,1.53429458]
[1750921675776,0.09,107890.0,107880.0,1.91429458]
[1750921675963,0.09,107890.0,107880.0,1.53429458]
[1750921678778,0.09,107890.0,107880.0,1.88429458]
[1750921679476,0.20982733,107900.0,107890.0,0.1852904]
[1750921679675,0.321,107900.0,107890.0,1.54963773]
[1750921681278,0.322,107900.0,107890.0,1.54963773]
[1750921683682,0.321,107900.0,107890.0,1.55263773]
[1750921685579,0.321,107900.0,107890.0,1.55463773]
[1750921687383,0.321,107900.0,107890.0,1.93463773]
[1750921687677,0.321,107900.0,107890.0,1.55463773]
[1750921688484,0.321,107900.0,107890.0,1.3458104]
[1750921688684,0.321,107900.0,107890.0,1.55463773]
[1750921690185,0.321,107900.0,107890.0,1.90463773]
[1750921690686,0.321,107900.0,107890.0,1.55463773]
[1750921690985,0.321,107900.0,107890.0,1.93463773]
[1750921691178,0.321,107900.0,107890.0,1.55463773]
[1750921691378,0.52982733,107900.0,107890.0,1.55463773]
[1750921692778,0.52982733,107900.0,107890.0,0.6134904]
[1750921692979,0.98772776,107900.0,107890.0,1.2515304]
[1750921693186,1.01852776,107900.0,107890.0,1.2515304]
[1750921694277,1.01852776,107900.0,107890.0,0.5510904]
[1750921694479,1.01852776,107900.0,107890.0,1.2515304]
[1750921695185,1.01852776,107900.0,107890.0,1.2505304]
[1750921696189,1.01852776,107900.0,107890.0,1.2485304]
[1750921704793,0.6008731,107900.0,107890.0,1.45735773]
[1750921705000,0.80970043,107900.0,107890.0,1.45735773]
[1750921705305,0.77890043,107900.0,107890.0,1.45735773]
[1750921705505,0.77890043,107900.0,107890.0,1.55445773]
[1750921705999,0.74750043,107900.0,107890.0,1.55445773]
[1750921706206,0.321,107900.0,107890.0,1.55445773]
[1750921706507,0.52982733,107900.0,107890.0,1.55445773]
[1750921708509,0.321,107900.0,107890.0,1.55445773]
[1750921708809,0.52982733,107900.0,107890.0,1.55445773]
[1750921708997,0.321,107900.0,107890.0,1.55445773]
[1750921711308,0.321,107900.0,107890.0,1.86445773]
[1750921711703,0.111,107900.0,107890.0,1.86445773]
[1750921712403,0.0792291,107900.0,107890.0,2.07328506]
[1750921712610,0.27162733,107930.0,107920.0,0.1852388]
[1750921712812,0.51942733,107930.0,107920.0,1.45530613]
[1750921713110,0.28,107930.0,107920.0,1.54980613]
[1750921713810,0.49382733,107930.0,107920.0,1.54980613]
[1750921714413,0.285,107930.0,107920.0,1.3409788]
[1750921714904,0.288,107930.0,107920.0,1.3409788]
[1750921715810,0.286,107930.0,107920.0,1.3409788]
[1750921716706,0.285,107930.0,107920.0,1.3409788]
[1750921716909,0.285,107930.0,107920.0,1.6191465]
[1750921717908,0.285,107930.0,107920.0,1.3409788]
[1750921720315,0.7483894,107930.0,107920.0,1.3408588]
[1750921720519,0.7794894,107930.0,107920.0,1.3408588]
[1750921725420,0.7483894,107930.0,107920.0,1.3408588]
[1750921732716,0.7805894,107930.0,107920.0,1.3408588]
[1750921736321,0.71107441,107930.0,107920.0,1.54951151]
[1750921736523,0.71107441,107930.0,107920.0,1.2461988]
[1750921736822,0.77387441,107930.0,107920.0,1.2461988]
[1750921737120,0.77387441,107930.0,107920.0,0.5460388]
[1750921737326,0.98252712,107930.0,107920.0,0.1852388]
[1750921737627,0.1852389,107920.0,107910.0,0.4104253]
[1750921737825,1.03394432,107920.0,107910.0,0.9780253]
[1750921738725,1.03394432,107920.0,107910.0,0.4104253]
[1750921739025,1.03494432,107920.0,107910.0,0.9780253]
[1750921740429,0.895931,107920.0,107910.0,0.9780253]
[1750921741430,0.6176389,107920.0,107910.0,0.9780253]
[1750921741632,0.895931,107920.0,107910.0,0.9780253]
[1750921741929,0.895931,107920.0,107910.0,1.0099253]
[1750921742730,0.895931,107920.0,107910.0,1.0405253]
[1750921743028,0.5872389,107920.0,107910.0,1.0405253]
[1750921743228,0.865531,107920.0,107910.0,1.0736253]
[1750921756543,0.5872389,107920.0,107910.0,1.0736253]
[1750921756736,0.865531,107920.0,107910.0,1.0736253]
[1750921756938,0.865531,107920.0,107910.0,0.4754253]
[1750921757135,0.865531,107920.0,107910.0,1.0430253]
[1750921757833,0.865531,107920.0,107910.0,0.2778653]
[1750921758035,0.895531,107920.0,107910.0,0.9783053]
[1750921759338,0.895531,107920.0,107910.0,0.9319929]
[1750921759544,1.256331,107920.0,107910.0,0.9319929]
[1750921761549,1.288031,107920.0,107910.0,0.9319929]
[1750921761745,1.0097389,107920.0,107910.0,0.9319929]
[1750921761949,0.9480389,107920.0,107910.0,1.0239929]
[1750921762452,1.1567249,107920.0,107910.0,1.2326789]
[1750921764053,1.3654109,107920.0,107910.0,1.2326789]
[1750921764243,1.22629524,107920.0,107910.0,1.0239929]
[1750921765938,1.25307303,107920.0,107910.0,0.3235529]
[1750921766146,1.25307303,107920.0,107910.0,1.0267129]
[1750921766949,1.22207303,107920.0,107910.0,1.0267129]
[1750921767151,0.94381669,107920.0,107910.0,1.0267129]
[1750921767348,1.22207303,107920.0,107910.0,0.9663129]
[1750921767654,1.45491033,107920.0,107910.0,0.1852561]
[1750921767842,1.50122373,107920.0,107910.0,0.8882161]
[1750921769350,1.50122373,107920.0,107910.0,0.1852561]
[1750921769550,1.50122373,107920.0,107910.0,0.7557761]
[1750921774654,1.22296739,107920.0,107910.0,0.7557761]
[1750921774846,1.46982373,107920.0,107910.0,0.7557761]
[1750921775047,1.43922373,107920.0,107910.0,0.8190761]
[1750921775248,1.41244594,107920.0,107910.0,0.8511761]
[1750921775455,1.36613254,107920.0,107910.0,0.8511761]
[1750921776955,1.39291212,107920.0,107910.0,0.8511761]
[1750921779550,1.03211212,107920.0,107910.0,0.8511761]
[1750921779756,1.39291212,107920.0,107910.0,0.8511761]
[1750921782761,1.42331212,107920.0,107910.0,0.8511761]
[1750921783461,1.42331212,107920.0,107910.0,0.8190761]
[1750921783664,1.45431212,107920.0,107910.0,0.8190761]
[1750921791366,1.39291212,107920.0,107910.0,0.8190761]
[1750921791570,1.39291212,107920.0,107910.0,0.8499761]
[1750921794275,1.53208388,107920.0,107910.0,0.8499761]
[1750921796074,1.50018388,107920.0,107910.0,0.8499761]
[1750921799073,1.4734043,107920.0,107910.0,0.8499761]
[1750921799374,1.1126043,107920.0,107910.0,1.05869015]
[1750921799574,0.85757685,107920.0,107910.0,1.05869015]
[1750921800167,0.85757685,107920.0,107910.0,0.48817015]
[1750921800376,1.0662909,107920.0,107910.0,0.2794561]
[1750921800577,1.0989909,107920.0,107910.0,0.9828161]
[1750921801378,1.0989909,107920.0,107910.0,0.2794561]
[1750921801582,1.0989909,107920.0,107910.0,0.9828161]
[1750921802083,1.0662909,107920.0,107910.0,0.9828161]
[1750921802282,1.0662909,107920.0,107910.0,0.9832561]
[1750921804282,0.92713575,107920.0,107910.0,0.9832561]
[1750921815087,0.6488628,107920.0,107910.0,0.9832561]
[1750921815294,0.92713575,107920.0,107910.0,0.9832561]
[1750921817899,0.92733575,107920.0,107910.0,0.9832561]
[1750921820004,0.3712,107920.0,107910.0,0.9832561]
[1750921820300,0.0312,107920.0,107910.0,1.3440561]
[1750921820601,0.0312,107920.0,107910.0,1.62232905]
[1750921821100,0.0312,107920.0,107910.0,2.00232905]
[1750921821301,0.0312,107920.0,107910.0,1.62232905]
[1750921822700,0.0312,107920.0,107910.0,1.3440561]
[1750921822900,0.0312,107920.0,107910.0,1.62232905]
[1750921823501,0.0312,107920.0,107910.0,1.3440561]
[1750921824102,0.2164389,107920.0,107910.0,1.3440561]
[1750921828203,0.42511279,107920.0,107910.0,1.55272999]
[1750921828398,0.0312,107920.0,107910.0,1.55272999]
[1750921828598,0.23987389,107920.0,107910.0,1.55272999]
[1750921828800,0.42511279,107920.0,107910.0,1.55272999]
[1750921828998,0.42511279,107920.0,107910.0,1.3440561]
[1750921829200,0.63378668,107920.0,107910.0,1.55272999]
[1750921830504,0.42511279,107920.0,107910.0,1.55272999]
[1750921831306,0.42511279,107920.0,107910.0,1.3440561]
[1750921831604,0.42511279,107920.0,107910.0,1.55272999]
[1750921832507,0.42511279,107920.0,107910.0,1.3440561]
[1750921832706,0.42511279,107920.0,107910.0,1.55272999]
[1750921835912,0.2164389,107920.0,107910.0,1.3440561]
[1750921836207,0.42511279,107920.0,107910.0,1.55272999]
[1750921838012,0.97378668,107920.0,107910.0,0.1852561]
[1750921838213,1.06918668,107920.0,107910.0,0.8878161]
[1750921839113,1.06918668,107920.0,107910.0,0.1852561]
[1750921839311,1.06918668,107920.0,107910.0,0.8881761]
[1750921840916,1.06918668,107920.0,107910.0,0.3186161]
[1750921841117,1.06918668,107920.0,107910.0,0.8880961]
[1750921841805,1.06918668,107920.0,107910.0,0.3186161]
[1750921842009,1.06918668,107920.0,107910.0,0.8881761]
[1750921843319,1.42998668,107920.0,107910.0,0.8881761]
[1750921843517,1.42998668,107920.0,107910.0,0.7548161]
[1750921843816,1.42998668,107920.0,107910.0,0.8882961]
[1750921847922,1.42998668,107920.0,107910.0,0.8883361]
[1750921853115,1.42998668,107920.0,107910.0,0.1852561]
[1750921853422,0.1852561,107910.0,107900.0,0.3966363]
[1750921853617,0.1852732,107900.0,107890.0,0.38726753]
[1750921853818,0.96402098,107900.0,107890.0,1.12206753]
[1750921854017,0.96402098,107900.0,107890.0,1.09066753]
[1750921854417,0.71402098,107900.0,107890.0,1.09066753]
[1750921855622,0.71402098,107900.0,107890.0,1.12316753]
[1750921856020,0.71402098,107900.0,107890.0,1.12616753]
[1750921856321,0.50534709,107900.0,107890.0,1.33684142]
[1750921856520,0.47394709,107900.0,107890.0,1.33684142]
[1750921856920,0.47394709,107900.0,107890.0,1.33584142]
[1750921857421,0.47394709,107900.0,107890.0,1.68584142]
[1750921857920,0.08,107900.0,107890.0,2.04664142]
[1750921858112,0.18527,107910.0,107900.0,0.1852732]
[1750921858309,0.34,107910.0,107900.0,1.37642098]
[1750921858514,0.2952561,107910.0,107900.0,1.51536748]
[1750921858718,0.2952561,107910.0,107900.0,1.56168418]
[1750921858919,0.11,107910.0,107900.0,1.56168418]
[1750921859116,0.2962561,107910.0,107900.0,1.21168418]
[1750921859419,0.2962561,107910.0,107900.0,1.00301029]
[1750921860022,0.2962561,107910.0,107900.0,1.38301029]
[1750921860220,0.2962561,107910.0,107900.0,1.07358812]
[1750921860419,0.2962561,107910.0,107900.0,1.45358812]
[1750921861022,0.2952561,107910.0,107900.0,1.45458812]
[1750921861224,0.11,107910.0,107900.0,1.45458812]
[1750921861925,0.29480522,107920.0,107910.0,0.1852561]
[1750921862118,0.34692742,107920.0,107910.0,1.55810782]
[1750921862325,0.34692742,107920.0,107910.0,1.98150782]
[1750921862521,0.3302,107920.0,107910.0,1.98150782]
[1750921864530,0.3312,107920.0,107910.0,1.98150782]
[1750921864717,0.33255046,107920.0,107910.0,1.98150782]
[1750921864915,0.33255046,107920.0,107910.0,1.27830782]
[1750921865117,0.79604108,107920.0,107910.0,0.7556961]
[1750921865324,0.82694108,107920.0,107910.0,0.7884961]
[1750921865523,0.79604108,107920.0,107910.0,0.8185961]
[1750921865823,0.51778936,107920.0,107910.0,1.1793961]
[1750921866024,0.51778936,107920.0,107910.0,0.6089561]
[1750921866222,0.51778936,107920.0,107910.0,1.3149561]
[1750921867422,0.51778936,107920.0,107910.0,0.6089561]
[1750921867624,0.51778936,107920.0,107910.0,1.3149561]
[1750921868124,0.79604108,107920.0,107910.0,1.3149561]
[1750921871631,0.79604108,107920.0,107910.0,0.6089561]
[1750921871930,0.79604108,107920.0,107910.0,1.3164361]
[1750921872935,0.79604108,107920.0,107910.0,0.6089561]
[1750921873233,0.79604108,107920.0,107910.0,0.9553561]
[1750921874829,0.82634108,107920.0,107910.0,0.9553561]
[1750921875733,0.82634108,107920.0,107910.0,0.2481561]
[1750921875934,0.89084108,107920.0,107910.0,0.9251361]
[1750921876134,0.89084108,107920.0,107910.0,0.8923361]
[1750921877038,0.89084108,107920.0,107910.0,0.1852561]
[1750921877438,0.89084108,107920.0,107910.0,0.8922561]
[1750921877642,0.89084108,107920.0,107910.0,0.1852561]
[1750921877841,0.89084108,107920.0,107910.0,0.8923361]
[1750921879143,0.89084108,107920.0,107910.0,0.1852561]
[1750921879345,0.89084108,107920.0,107910.0,0.8922961]
[1750921889750,0.61258936,107920.0,107910.0,0.8922961]
[1750921889950,0.89084108,107920.0,107910.0,0.9546961]
[1750921890752,0.82634108,107920.0,107910.0,0.9546961]
[1750921891050,0.79604108,107920.0,107910.0,1.3475961]
[1750921892052,0.51778936,107920.0,107910.0,1.3475961]
[1750921892351,0.79604108,107920.0,107910.0,1.3475961]
[1750921892654,0.51778936,107920.0,107910.0,1.3475961]
[1750921892855,0.79604108,107920.0,107910.0,1.3475961]
[1750921894255,0.33255046,107920.0,107910.0,1.62584782]
[1750921894454,0.08255046,107920.0,107910.0,1.94584782]
[1750921895054,0.08255046,107920.0,107910.0,1.6675961]
[1750921896351,0.26778936,107920.0,107910.0,1.6675961]
[1750921896859,0.08255046,107920.0,107910.0,1.6675961]
[1750921897359,0.26778936,107920.0,107910.0,1.6675961]
[1750921900158,0.08255046,107920.0,107910.0,1.94584782]
[1750921900360,0.00255046,107920.0,107910.0,1.94584782]
[1750921908367,0.00255046,107920.0,107910.0,1.6675961]
[1750921908664,0.00255046,107920.0,107910.0,1.94584782]
[1750921911668,0.00255046,107920.0,107910.0,1.6675961]
[1750921911870,0.00255046,107920.0,107910.0,1.62584782]
[1750921912064,0.19778936,107920.0,107910.0,1.3450761]
[1750921912368,0.19778936,107920.0,107910.0,0.6405561]
[1750921912571,0.78604108,107920.0,107910.0,1.3450361]
[1750921912868,0.81614108,107920.0,107910.0,1.3450361]
[1750921915075,0.81614108,107920.0,107910.0,1.2827361]
[1750921915273,0.84784108,107920.0,107910.0,1.2827361]
[1750921915473,0.87904108,107920.0,107910.0,1.2827361]
[1750921915675,0.87904108,107920.0,107910.0,1.2828961]
[1750921916170,0.87904108,107920.0,107910.0,0.5460561]
[1750921916372,0.87904108,107920.0,107910.0,0.8898161]
[1750921918374,0.60078936,107920.0,107910.0,0.8898161]
[1750921918771,0.87904108,107920.0,107910.0,0.8898161]
[1750921920578,0.87904108,107920.0,107910.0,0.3194161]
[1750921920882,0.87904108,107920.0,107910.0,0.8902961]
[1750921925088,0.87904108,107920.0,107910.0,0.1852561]
[1750921925286,1.23984108,107920.0,107910.0,0.8900161]
[1750921926598,1.23984108,107920.0,107910.0,0.1852561]
[1750921926798,1.23984108,107920.0,107910.0,0.8900561]
[1750921926999,1.23984108,107920.0,107910.0,0.1852561]
[1750921927300,1.23984108,107920.0,107910.0,0.8905761]
[1750921931001,0.96158936,107920.0,107910.0,0.8905761]
[1750921931306,0.50778936,107920.0,107910.0,0.8905761]
[1750921931499,0.50778936,107920.0,107910.0,0.9858761]
[1750921933002,0.32255046,107920.0,107910.0,1.94492782]
[1750921933302,0.00255046,107920.0,107910.0,1.94492782]
[1750921936699,0.00255046,107920.0,107910.0,1.3466761]
[1750921936904,0.04255046,107920.0,107910.0,1.3466761]
[1750921937103,0.04255046,107920.0,107910.0,1.7066761]
[1750921938403,0.04255046,107920.0,107910.0,1.98492782]
[1750921939402,0.00255046,107920.0,107910.0,1.98492782]
[1750921944411,0.00255046,107920.0,107910.0,1.62492782]
[1750921944610,0.00255046,107920.0,107910.0,1.96492782]
[1750921945404,0.00255046,107920.0,107910.0,1.62492782]
[1750921945803,0.00255046,107920.0,107910.0,1.96492782]
[1750921946510,0.00255046,107920.0,107910.0,1.69492782]
[1750921946913,0.00255046,107920.0,107910.0,2.00492782]
[1750921947712,0.00255046,107920.0,107910.0,1.7266761]
[1750921947912,0.00255046,107920.0,107910.0,2.00492782]
[1750921948110,0.00255046,107920.0,107910.0,1.7266761]
[1750921950712,0.62604108,107920.0,107910.0,1.3460761]
[1750921950905,0.63604108,107920.0,107910.0,1.3460761]
[1750921953100,0.83604108,107920.0,107910.0,0.6413561]
[1750921953499,0.83604108,107920.0,107910.0,1.3461961]
[1750921953710,0.86624108,107920.0,107910.0,1.3461961]
[1750921953909,0.86624108,107920.0,107910.0,0.6413561]
[1750921954212,0.86624108,107920.0,107910.0,1.3463161]
[1750921956213,0.86624108,107920.0,107910.0,1.3461961]
[1750921956914,0.86624108,107920.0,107910.0,0.6413561]
[1750921957212,0.86624108,107920.0,107910.0,1.3461561]
[1750921958915,0.58798936,107920.0,107910.0,1.3461561]
[1750921959110,0.37255046,107920.0,107910.0,1.94440782]
[1750921959311,0.00255046,107920.0,107910.0,1.94440782]
[1750921966914,0.00382725,107920.0,107910.0,1.94440782]
[1750921968819,0.00382725,107920.0,107910.0,1.94408782]
[1750921969718,0.00382725,107920.0,107910.0,1.93408782]
[1750921970522,0.00382725,107920.0,107910.0,1.6558361]
[1750921971924,0.00382725,107920.0,107910.0,1.93408782]
[1750921974425,0.00382725,107920.0,107910.0,1.6558361]
[1750921974821,0.00382725,107920.0,107910.0,1.93408782]
[1750921976024,0.00382725,107920.0,107910.0,1.6558361]
[1750921976226,0.00382725,107920.0,107910.0,1.4158361]
[1750921976414,0.18906615,107920.0,107910.0,0.6413561]
[1750921976619,0.46731787,107920.0,107910.0,1.3453561]
[1750921977926,0.18906615,107920.0,107910.0,1.3453561]
[1750921979632,0.00382725,107920.0,107910.0,1.3453561]
[1750921980130,0.00382725,107920.0,107910.0,1.6753561]
[1750921980326,0.21250188,107920.0,107910.0,1.88403073]
[1750921981632,0.00382725,107920.0,107910.0,1.88403073]
[1750921981833,0.21250188,107920.0,107910.0,1.88403073]
[1750921982226,0.00382725,107920.0,107910.0,1.88403073]
[1750921988435,0.00382725,107920.0,107910.0,2.09270536]
[1750921989124,5e-08,107920.0,107910.0,2.09270536]
[1750921989329,0.24177463,107940.0,107930.0,0.1852217]
[1750921989530,0.55867463,107940.0,107930.0,2.18893633]
[1750921989730,0.35,107940.0,107930.0,2.28523633]
[1750921990335,0.55887463,107940.0,107930.0,2.28523633]
[1750921990536,0.3532,107940.0,107930.0,2.28523633]
[1750921991327,0.3572,107940.0,107930.0,2.28523633]
[1750921991727,0.56587463,107940.0,107930.0,1.0531217]
[1750921991931,0.75107923,107940.0,107930.0,1.93265633]
[1750921992133,0.78167923,107940.0,107930.0,1.93265633]
[1750921992337,0.6039046,107940.0,107930.0,1.7239417]
[1750921993038,0.6039046,107940.0,107930.0,1.0202217]
[1750921993231,0.4187,107940.0,107930.0,1.7239417]
[1750921994337,0.6039046,107940.0,107930.0,1.7239417]
[1750921997343,0.5730046,107940.0,107930.0,1.7239417]
[1750921998344,0.3878,107940.0,107930.0,1.7239417]
[1750921998546,0.3878,107940.0,107930.0,1.7541417]
[1750921999445,0.3878,107940.0,107930.0,2.0541417]
[1750921999749,0.3878,107940.0,107930.0,2.33227545]
[1750922000745,0.3572,107940.0,107930.0,2.33227545]
[1750922001145,0.3572,107940.0,107930.0,2.0541417]
[1750922001346,0.3572,107940.0,107930.0,2.33227545]
[1750922003254,0.3572,107940.0,107930.0,2.03227545]
[1750922004649,0.3572,107940.0,107930.0,1.7541417]
[1750922005443,0.3572,107940.0,107930.0,2.03227545]
[1750922006856,0.3572,107940.0,107930.0,2.03127545]
[1750922008055,0.3572,107940.0,107930.0,2.31127545]
[1750922008453,0.3572,107940.0,107930.0,1.98127545]
[1750922008659,0.3572,107940.0,107930.0,1.7531417]
[1750922008851,0.3572,107940.0,107930.0,2.03111545]
[1750922009052,0.3572,107940.0,107930.0,1.7529817]
[1750922010957,0.3572,107940.0,107930.0,2.03111545]
[1750922011455,0.3572,107940.0,107930.0,1.7529817]
[1750922012960,0.3572,107940.0,107930.0,2.0729817]
[1750922013457,0.3572,107940.0,107930.0,2.35111545]
[1750922014258,0.56578488,107940.0,107930.0,2.0729817]
[1750922014459,0.56578488,107940.0,107930.0,1.96156658]
[1750922015263,0.3572,107940.0,107930.0,1.96156658]
[1750922015561,0.56578488,107940.0,107930.0,1.96156658]
[1750922016163,0.56578488,107940.0,107930.0,2.29156658]
[1750922018256,0.3572,107940.0,107930.0,2.29156658]
[1750922018755,0.56578488,107940.0,107930.0,2.29156658]
[1750922019762,0.56578488,107940.0,107930.0,1.58900658]
[1750922020263,0.56578488,107940.0,107930.0,2.29232658]
[1750922020465,0.56578488,107940.0,107930.0,2.0837417]
[1750922020663,0.56578488,107940.0,107930.0,2.29232658]
[1750922020864,0.56578488,107940.0,107930.0,1.58900658]
[1750922021065,0.56578488,107940.0,107930.0,2.29224658]
[1750922021264,0.56578488,107940.0,107930.0,1.58900658]
[1750922021458,0.3572,107940.0,107930.0,1.58900658]
[1750922021659,0.56578488,107940.0,107930.0,1.58900658]
[1750922021860,0.56578488,107940.0,107930.0,2.29216658]
[1750922024367,0.3572,107940.0,107930.0,2.29216658]
[1750922025670,0.3572,107940.0,107930.0,2.0835817]
[1750922025866,0.3572,107940.0,107930.0,2.29216658]
[1750922026171,0.1772,107940.0,107930.0,2.0835817]
[1750922026365,0.1772,107940.0,107930.0,2.29216658]
[1750922026668,0.1772,107940.0,107930.0,1.3804217]
[1750922026863,0.38578488,107940.0,107930.0,1.7034617]
[1750922027064,0.1772,107940.0,107930.0,2.27204658]
[1750922027265,0.38578488,107940.0,107930.0,2.27204658]
[1750922027567,0.1772,107940.0,107930.0,2.27204658]
[1750922027765,0.38578488,107940.0,107930.0,1.96204658]
[1750922028468,0.98957436,107940.0,107930.0,1.2492217]
[1750922028664,1.05277436,107940.0,107930.0,1.2492217]
[1750922029064,1.05277436,107940.0,107930.0,0.5460217]
[1750922029264,1.05277436,107940.0,107930.0,1.2492217]
[1750922030064,1.05277436,107940.0,107930.0,0.5460217]
[1750922030265,1.05277436,107940.0,107930.0,1.2499017]
[1750922030564,1.06974271,107940.0,107930.0,0.5460217]
[1750922030765,1.20865631,107940.0,107930.0,0.8900217]
[1750922031165,1.20865631,107940.0,107930.0,0.7566617]
[1750922031472,0.277879,107920.0,107910.0,0.365083]
[1750922031769,1.02504876,107920.0,107910.0,0.936923]
[1750922031969,1.08964876,107920.0,107910.0,0.936923]
[1750922032174,1.08964876,107920.0,107910.0,0.803563]
[1750922032872,0.672479,107920.0,107910.0,0.803523]
[1750922033077,1.08964876,107920.0,107910.0,0.8498364]
[1750922033567,0.1852561,107910.0,107900.0,0.6386903]
[1750922033773,1.06882586,107910.0,107900.0,0.9844903]
[1750922034274,0.93002227,107910.0,107900.0,0.9845303]
[1750922034472,1.29082227,107910.0,107900.0,0.9845303]
[1750922034664,1.29082227,107910.0,107900.0,0.2778903]
[1750922034870,1.29082227,107910.0,107900.0,0.9848103]
[1750922035167,1.29082227,107910.0,107900.0,0.2788903]
[1750922035370,1.29082227,107910.0,107900.0,0.9858103]
[1750922035773,1.29082227,107910.0,107900.0,0.9878103]
[1750922036271,1.29082227,107910.0,107900.0,0.1882733]
[1750922036476,1.29082227,107910.0,107900.0,0.7615133]
[1750922036667,1.29082227,107910.0,107900.0,0.1882733]
[1750922036870,1.29082227,107910.0,107900.0,0.57624]
[1750922037067,1.29082227,107910.0,107900.0,0.7615133]
[1750922037674,1.29082227,107910.0,107900.0,0.7605133]
[1750922037877,1.0144561,107910.0,107900.0,0.7605133]
[1750922038070,1.29282227,107910.0,107900.0,0.7605133]